fUST/lending_fUST_20250301
["ID","MTS","AMOUNT","RATE_DAILY","PERIOD"]
[354900212,1740803445800,-500.0,0.00040272,2]
[354900213,1740803445810,-500.0,0.00040272,2]
[354900214,1740803445819,-720.03,0.00040272,2]
[354900215,1740803445828,-500.0,0.00040272,2]
[354900216,1740803445837,-500.0,0.00040272,2]
[354900217,1740803445847,-504.77463413,0.00040272,2]
[354900219,1740803445856,-502.95608307,0.00040272,2]
[354900220,1740803445866,-905.94,0.00040272,2]
[354900221,1740803445876,-500.0,0.00040272,2]
[354900222,1740803445885,-500.0,0.00040272,2]
[354900223,1740803445895,-500.0,0.00040272,2]
[354900224,1740803445904,-592.41,0.00040272,2]
[354900226,1740803445913,-824.79,0.00040272,2]
[354900228,1740803445923,-500.0,0.00040272,2]
[354900229,1740803445932,-500.0,0.00040272,2]
[354900230,1740803445941,-500.0,0.00040272,2]
[354900231,1740803445950,-673.94,0.00040272,2]
[354900232,1740803445959,-1160.58,0.00040272,2]
[354900233,1740803445969,-500.0,0.00040272,2]
[354900234,1740803445978,-163.83549975,0.00040272,2]
[354900235,1740803445987,-500.0,0.00040272,2]
[354900236,1740803445996,-500.0,0.00040272,2]
[354900237,1740803446006,-500.0,0.00040272,2]
[354900238,1740803446015,-500.0,0.00040272,2]
[354900239,1740803446024,-672.18,0.00040272,2]
[354900240,1740803446033,-2631.34,0.00040272,2]
[354900242,1740803446043,-500.0,0.00040272,2]
[354900244,1740803446052,-547.15,0.00040272,2]
[354900245,1740803446062,-668.56,0.00040272,2]
[354900246,1740803446072,-500.0,0.00040272,2]
[354900247,1740803446081,-500.0,0.00040272,2]
[354900248,1740803446090,-500.0,0.00040272,2]
[354900249,1740803446099,-500.0,0.00040272,2]
[354900250,1740803446108,-500.0,0.00040272,2]
[354900251,1740803446118,-500.0,0.00040272,2]
[354900252,1740803446127,-500.0,0.00040272,2]
[354900253,1740803446136,-500.0,0.00040272,2]
[354900254,1740803446146,-500.0,0.00040272,2]
[354900255,1740803446155,-500.0,0.00040272,2]
[354900256,1740803446165,-500.0,0.00040272,2]
[354900257,1740803446174,-500.0,0.00040272,2]
[354900258,1740803446183,-1000.0,0.00040272,60]
[354900259,1740803446192,-500.0,0.00040272,2]
[354900260,1740803446202,-500.0,0.00040272,2]
[354900261,1740803446211,-500.0,0.00040272,2]
[354900262,1740803446221,-500.0,0.00040272,2]
[354900263,1740803446230,-500.0,0.00040272,2]
[354900264,1740803446240,-500.0,0.00040272,2]
[354900265,1740803446249,-1967.26,0.00040272,2]
[354900266,1740803446258,-500.0,0.00040272,2]
[354900267,1740803446267,-500.0,0.00040272,2]
[354900268,1740803446277,-1420.27,0.00040272,2]
[354900270,1740803446286,-500.0,0.00040272,2]
[354900272,1740803446296,-500.0,0.00040272,2]
[354900274,1740803446307,-500.0,0.00040272,2]
[354900276,1740803446318,-500.0,0.00040272,2]
[354900278,1740803446327,-1462.88,0.00040272,2]
[354900279,1740803446336,-500.0,0.00040272,2]
[354900280,1740803446346,-500.0,0.00040272,2]
[354900281,1740803446355,-500.0,0.00040272,2]
[354900282,1740803446365,-505.73008203,0.00040272,2]
[354900283,1740803446376,-500.0,0.00040272,2]
[354900284,1740803446389,-500.0,0.00040272,2]
[354900285,1740803446400,-1079.14,0.00040272,2]
[354900286,1740803446409,-500.0,0.00040272,2]
[354900287,1740803446419,-529.47,0.00040272,2]
[354900288,1740803446428,-500.0,0.00040272,2]
[354900289,1740803446438,-836.65,0.00040272,2]
[354900290,1740803446447,-564.39,0.00040272,2]
[354900291,1740803446457,-500.0,0.00040272,2]
[354900292,1740803446466,-500.0,0.00040272,2]
[354900293,1740803446477,-500.0,0.00040272,2]
[354900294,1740803446486,-529.58,0.00040272,2]
[354900295,1740803446496,-500.0,0.00040272,2]
[354900296,1740803446505,-500.0,0.00040272,2]
[354900297,1740803446515,-500.0,0.00040272,2]
[354900298,1740803446524,-502.99100601,0.00040272,2]
[354900299,1740803446535,-500.0,0.00040272,2]
[354900300,1740803446544,-500.0,0.00040272,2]
[354900301,1740803446554,-500.0,0.00040272,2]
[354900302,1740803446564,-500.0,0.00040272,2]
[354900303,1740803446574,-500.0,0.00040272,2]
[354900304,1740803446584,-500.0,0.00040272,2]
[354900305,1740803446594,-952.92,0.00040272,2]
[354900306,1740803446604,-811.97,0.00040272,2]
[354900307,1740803446614,-500.0,0.00040272,2]
[354900308,1740803446625,-500.0,0.00040272,2]
[354900309,1740803446634,-500.0,0.00040272,2]
[354900310,1740803446643,-500.0,0.00040272,2]
[354900311,1740803446653,-500.0,0.00040272,2]
[354900312,1740803446663,-500.0,0.00040272,2]
[354900313,1740803446672,-150.65190161,0.00040272,2]
[354900314,1740803446682,-500.0,0.00040272,2]
[354900315,1740803446692,-500.0,0.00040272,2]
[354900316,1740803446702,-2500.008198,0.00040272,14]
[354900317,1740803446711,-1187.18,0.00040272,2]
[354900318,1740803446720,-500.0,0.00040272,2]
[354900319,1740803446730,-2500.008198,0.00040272,14]
[354900320,1740803446739,-500.0,0.00040272,2]
[354900321,1740803446748,-501.76,0.00040272,2]
[354900322,1740803446758,-501.47775902,0.00040272,2]
[354900323,1740803446767,-500.0,0.00040272,2]
[354900324,1740803446776,-1810.97,0.00040272,2]
[354900325,1740803446786,-151.0,0.00040272,14]
[354900326,1740803446795,-1472.87,0.00040272,2]
[354900327,1740803446806,-500.0,0.00040272,2]
[354900328,1740803446815,-508.27184429,0.00040272,2]
[354900329,1740803446824,-500.0,0.00040272,2]
[354900330,1740803446834,-502.17304646,0.00040272,2]
[354900331,1740803446843,-668.98,0.00040272,2]
[354900332,1740803446854,-948.69,0.00040272,2]
[354900333,1740803446864,-500.0,0.00040272,2]
[354900334,1740803446877,-500.0,0.00040272,2]
[354900335,1740803446887,-174.723508,0.00040272,14]
[354900336,1740803446897,-500.0,0.00040272,2]
[354900337,1740803446907,-500.0,0.00040272,2]
[354900338,1740803446917,-1057.25,0.00040272,2]
[354900339,1740803446927,-500.0,0.00040272,2]
[354900340,1740803446937,-174.723508,0.00040272,14]
[354900341,1740803446947,-1375.96,0.00040272,2]
[354900342,1740803446957,-500.0,0.00040272,2]
[354900343,1740803446967,-504.05068478,0.00040272,2]
[354900344,1740803446977,-722.851103,0.00040272,14]
[354900345,1740803446987,-722.851103,0.00040272,14]
[354900346,1740803446996,-500.0,0.00040272,2]
[354900347,1740803447006,-500.0,0.00040272,2]
[354900348,1740803447016,-500.0,0.00040272,2]
[354900349,1740803447025,-500.0,0.00040272,2]
[354900350,1740803447035,-502.22558594,0.00040272,2]
[354900351,1740803447044,-500.0,0.00040272,2]
[354900352,1740803447054,-970.44,0.00040272,2]
[354900353,1740803447063,-673.76,0.00040272,2]
[354900354,1740803447075,-500.0,0.00040272,2]
[354900355,1740803447086,-500.0,0.00040272,2]
[354900356,1740803447096,-500.0,0.00040272,2]
[354900357,1740803447106,-1062.49,0.00040272,2]
[354900358,1740803447115,-1856.322944,0.00040272,14]
[354900359,1740803447126,-500.0,0.00040272,2]
[354900360,1740803447136,-500.0,0.00040272,2]
[354900361,1740803447145,-500.0,0.00040272,2]
[354900362,1740803447156,-1856.322944,0.00040272,14]
[354900363,1740803447165,-500.0,0.00040272,2]
[354900364,1740803447175,-500.0,0.00040272,2]
[354900365,1740803447184,-500.0,0.00040272,2]
[354900366,1740803447193,-500.0,0.00040272,2]
[354900367,1740803447203,-500.0,0.00040272,2]
[354900368,1740803447212,-678.02,0.00040272,2]
[354900369,1740803447222,-500.0,0.00040272,2]
[354900370,1740803447231,-509.43753605,0.00040272,2]
[354900371,1740803447240,-500.0,0.00040272,2]
[354900372,1740803447250,-555.13,0.00040272,2]
[354900373,1740803447259,-358.228782,0.00040272,14]
[354900374,1740803447268,-500.0,0.00040272,2]
[354900375,1740803447277,-500.0,0.00040272,2]
[354900376,1740803447287,-3413.25,0.00040272,2]
[354900377,1740803447296,-500.0,0.00040272,2]
[354900378,1740803447306,-358.228782,0.00040272,14]
[354900379,1740803447320,-535.9566018,0.00040272,2]
[354900380,1740803447331,-500.0,0.00040272,2]
[354900381,1740803447340,-2405.12,0.00040272,2]
[354900382,1740803447351,-312.87707355,0.00040272,2]
[354900383,1740803447361,-500.0,0.00040272,2]
[354900384,1740803447371,-500.0,0.00040272,2]
[354900385,1740803447381,-532.98720396,0.00040272,2]
[354900386,1740803447392,-500.0,0.00040272,2]
[354900387,1740803447402,-2028.31,0.00040272,2]
[354900388,1740803447411,-234.515658,0.00040272,14]
[354900389,1740803447420,-16043.12,0.00040272,2]
[354900390,1740803447430,-151.0,0.00040272,14]
[354900391,1740803447439,-590.158248,0.00040272,14]
[354900392,1740803447449,-234.515658,0.00040272,14]
[354900393,1740803447458,-590.158248,0.00040272,14]
[354900394,1740803447468,-2764.79,0.00040272,2]
[354900395,1740803447478,-500.0,0.00040272,2]
[354900396,1740803447488,-151.0,0.00040272,14]
[354900397,1740803447497,-290073.6,0.00040272,2]
[354900398,1740803447507,-500.0,0.00040272,2]
[354900399,1740803447517,-830.16,0.00040272,2]
[354900400,1740803447528,-231.384318,0.00040272,14]
[354900401,1740803447540,-500.0,0.00040272,2]
[354900402,1740803447550,-3859.55,0.00040272,2]
[354900403,1740803447561,-554.53,0.00040272,2]
[354900404,1740803447571,-231.384318,0.00040272,14]
[354900405,1740803447581,-500.0,0.00040272,2]
[354900406,1740803447590,-500.0,0.00040272,2]
[354900407,1740803447606,-500.0,0.00040272,2]
[354900408,1740803447622,-500.0,0.00040272,2]
[354900409,1740803447632,-5651.63,0.00040272,2]
[354900410,1740803447642,-503.01077724,0.00040272,2]
[354900411,1740803447652,-500.0,0.00040272,2]
[354900412,1740803447662,-151.849832,0.00040272,14]
[354900413,1740803447672,-2548.47,0.00040272,2]
[354900414,1740803447682,-500.0,0.00040272,2]
[354900415,1740803447691,-500.0,0.00040272,2]
[354900416,1740803447700,-2901.34,0.00040272,2]
[354900417,1740803447710,-819.43,0.00040272,2]
[354900418,1740803447719,-539.35,0.00040272,2]
[354900419,1740803447728,-154.865842,0.00040272,14]
[354900420,1740803447738,-500.0,0.00040272,2]
[354900421,1740803447747,-646.69,0.00040272,2]
[354900422,1740803447756,-500.0,0.00040272,2]
[354900423,1740803447766,-500.0,0.00040272,2]
[354900424,1740803447776,-7708.48,0.00040272,2]
[354900425,1740803447785,-608.93694024,0.00040272,2]
[354900426,1740803447795,-500.0,0.00040272,2]
[354900427,1740803447804,-500.0,0.00040272,2]
[354900428,1740803447814,-500.0,0.00040272,2]
[354900429,1740803447824,-561.25,0.00040272,2]
[354900430,1740803447834,-500.0,0.00040272,2]
[354900431,1740803447843,-752.86,0.00040272,2]
[354900432,1740803447853,-567.98,0.00040272,2]
[354900433,1740803447863,-500.0,0.00040272,2]
[354900434,1740803447874,-500.0,0.00040272,2]
[354900435,1740803447883,-500.0,0.00040272,2]
[354900436,1740803447893,-1610.65,0.00040272,2]
[354900437,1740803447903,-670.4,0.00040272,2]
[354900438,1740803447912,-505.9774851,0.00040272,2]
[354900439,1740803447922,-500.0,0.00040272,2]
[354900440,1740803447932,-500.0,0.00040272,2]
[354900441,1740803447941,-500.0,0.00040272,2]
[354900442,1740803447951,-1489.9,0.00040272,2]
[354900443,1740803448095,-500.0,0.00040272,2]
[354900444,1740803448105,-1164.12,0.00040272,2]
[354900445,1740803448114,-500.0,0.00040272,2]
[354900446,1740803448125,-500.0,0.00040272,2]
[354900447,1740803448135,-1530.31,0.00040272,2]
[354900448,1740803448144,-500.0,0.00040272,2]
[354900449,1740803448153,-500.0,0.00040272,2]
[354900450,1740803448162,-500.0,0.00040272,2]
[354900451,1740803448171,-500.0,0.00040272,2]
[354900452,1740803448181,-500.0,0.00040272,2]
[354900453,1740803448190,-569.22,0.00040272,2]
[354900454,1740803448199,-500.0,0.00040272,2]
[354900455,1740803448209,-500.0,0.00040272,2]
[354900456,1740803448218,-500.0,0.00040273,5]
[354900457,1740803448228,-500.0,0.00040273,5]
[354900458,1740803448238,-500.0,0.00040273,5]
[354900459,1740803448248,-161.32455718,0.00040273,5]
[354900460,1740803448258,-500.0,0.00040273,5]
[354900461,1740803448267,-500.0,0.00040273,3]
[354900462,1740803448276,-500.0,0.00040273,5]
[354900463,1740803448286,-500.0,0.00040273,5]
[354900464,1740803448295,-500.0,0.00040273,5]
[354900465,1740803448307,-506.35827061,0.00040273,5]
[354900466,1740803448317,-503.6750416,0.00040273,2]
[354900467,1740803448327,-721.19,0.00040273,2]
[354900468,1740803448337,-500.0,0.00040273,2]
[354900469,1740803448347,-500.0,0.00040273,2]
[354900470,1740803448357,-612.43,0.00040273,2]
[354900471,1740803448367,-530.32,0.00040273,2]
[354900472,1740803448379,-500.0,0.00040273,2]
[354900473,1740803448389,-500.0,0.00040273,2]
[354900474,1740803448399,-500.0,0.00040273,2]
[354900475,1740803448409,-500.0,0.00040273,2]
[354900476,1740803448418,-500.0,0.00040273,2]
[354900477,1740803448427,-500.0,0.00040273,2]
[354900478,1740803448437,-500.0,0.00040273,2]
[354900479,1740803448446,-500.0,0.00040273,2]
[354900480,1740803448456,-500.0,0.00040273,2]
[354900481,1740803448466,-500.0,0.00040273,2]
[354900482,1740803448475,-500.0,0.00040273,2]
[354900483,1740803448484,-500.0,0.00040273,2]
[354900484,1740803448493,-500.0,0.00040273,2]
[354900485,1740803448504,-341.59628533,0.00040273,2]
[354900486,1740803448513,-500.0,0.00040273,2]
[354900487,1740803448523,-500.0,0.00040273,2]
[354900488,1740803448532,-500.0,0.00040273,2]
[354900489,1740803448542,-649.05815658,0.00040273,2]
[354900490,1740803448551,-500.27476744,0.00040273,2]
[354900491,1740803448561,-500.0,0.00040273,2]
[354900492,1740803448572,-906.04,0.00040273,2]
[354900493,1740803448581,-500.0,0.00040273,2]
[354900494,1740803448591,-500.0,0.00040273,2]
[354900495,1740803448601,-500.0,0.00040273,2]
[354900496,1740803448611,-500.0,0.00040273,2]
[354900497,1740803448620,-500.0,0.00040273,2]
[354900498,1740803448631,-1268.4,0.00040273,2]
[354900499,1740803448641,-500.0,0.00040273,2]
[354900500,1740803448654,-500.0,0.00040273,2]
[354900501,1740803448663,-500.0,0.00040273,2]
[354900502,1740803448672,-500.0,0.00040273,2]
[354900503,1740803448682,-500.0,0.00040273,2]
[354900504,1740803448691,-500.0,0.00040273,2]
[354900505,1740803448701,-527.4952183,0.00040273,2]
[354900506,1740803448710,-533.40424609,0.00040273,2]
[354900507,1740803448719,-988.71,0.00040273,2]
[354900508,1740803448729,-500.0,0.00040273,2]
[354900509,1740803448738,-2654.46,0.00040273,2]
[354900510,1740803448748,-500.0,0.00040273,2]
[354900511,1740803448758,-500.0,0.00040273,2]
[354900512,1740803448767,-501.40465957,0.00040273,2]
[354900513,1740803448777,-500.0,0.00040273,2]
[354900514,1740803448787,-500.0,0.00040273,2]
[354900515,1740803448797,-500.0,0.00040273,2]
[354900516,1740803448806,-686.52,0.00040273,2]
[354900517,1740803448816,-500.0,0.00040273,2]
[354900518,1740803448826,-576.58,0.00040273,2]
[354900519,1740803448835,-500.0,0.00040273,2]
[354900520,1740803448845,-500.0,0.00040273,2]
[354900521,1740803448862,-500.0,0.00040273,2]
[354900522,1740803448872,-501.6256182,0.00040273,2]
[354900523,1740803448882,-7937.43,0.00040273,2]
[354900524,1740803448892,-500.0,0.00040273,2]
[354900525,1740803448902,-805.07,0.00040273,2]
[354900526,1740803448911,-500.0,0.00040273,2]
[354900527,1740803448921,-500.0,0.00040273,2]
[354900528,1740803448930,-506.83329024,0.00040273,2]
[354900529,1740803448940,-300.0,0.00040273,120]
[354900530,1740803448949,-500.0,0.00040273,2]
[354900531,1740803448959,-500.0,0.00040273,2]
[354900532,1740803448968,-500.0,0.00040273,2]
[354900533,1740803448978,-500.0,0.00040273,2]
[354900534,1740803448988,-500.0,0.00040273,2]
[354900535,1740803448997,-500.0,0.00040273,2]
[354900536,1740803449007,-750.68,0.00040273,2]
[354900537,1740803449017,-500.0,0.00040273,2]
[354900538,1740803449026,-500.0,0.00040273,2]
[354900539,1740803449036,-500.0,0.00040273,2]
[354900540,1740803449045,-500.0,0.00040273,2]
[354900541,1740803449055,-1966.72,0.00040273,2]
[354900542,1740803449065,-500.0,0.00040273,2]
[354900543,1740803449075,-500.0,0.00040273,2]
[354900544,1740803449085,-500.0,0.00040273,2]
[354900545,1740803449095,-500.0,0.00040273,2]
[354900546,1740803449104,-500.0,0.00040273,2]
[354900547,1740803449114,-500.0,0.00040273,2]
[354900548,1740803449123,-500.0,0.00040273,2]
[354900549,1740803449133,-912.01,0.00040273,2]
[354900550,1740803449143,-500.0,0.00040273,2]
[354900551,1740803449153,-500.0,0.00040273,2]
[354900552,1740803449163,-500.0,0.00040273,2]
[354900553,1740803449172,-509.13053613,0.00040273,14]
[354900554,1740803449182,-500.0,0.00040273,2]
[354900555,1740803449191,-500.0,0.00040273,2]
[354900556,1740803449201,-500.0,0.00040273,2]
[354900557,1740803449210,-500.0,0.00040273,2]
[354900558,1740803449221,-500.0,0.00040273,2]
[354900559,1740803449231,-1000.0,0.00040273,2]
[354900560,1740803449240,-500.0,0.00040273,2]
[354900561,1740803449250,-500.0,0.00040273,2]
[354900562,1740803449259,-1958.03,0.00040273,2]
[354900563,1740803449269,-500.0,0.00040273,2]
[354900564,1740803449279,-500.0,0.00040273,2]
[354900565,1740803449288,-500.0,0.00040273,2]
[354900566,1740803449299,-500.0,0.00040273,2]
[354900567,1740803449309,-2368.61,0.00040273,2]
[354900568,1740803449322,-500.0,0.00040273,2]
[354900569,1740803449331,-500.0,0.00040273,2]
[354900570,1740803449341,-500.0,0.00040273,2]
[354900571,1740803449351,-505.44397405,0.00040273,2]
[354900572,1740803449361,-500.0,0.00040273,2]
[354900573,1740803449371,-1371.21,0.00040273,2]
[354900574,1740803449381,-500.0,0.00040273,2]
[354900575,1740803449392,-500.0,0.00040273,2]
[354900576,1740803449401,-500.0,0.00040273,2]
[354900577,1740803449412,-500.0,0.00040273,2]
[354900578,1740803449421,-500.0,0.00040273,2]
[354900579,1740803449432,-500.0,0.00040273,2]
[354900580,1740803449442,-500.0,0.00040273,2]
[354900581,1740803449451,-500.0,0.00040273,2]
[354900582,1740803449461,-500.0,0.00040273,2]
[354900583,1740803449471,-500.0,0.00040273,2]
[354900584,1740803449481,-500.0,0.00040273,2]
[354900585,1740803449491,-1052.58,0.00040273,2]
[354900586,1740803449501,-500.0,0.00040273,2]
[354900587,1740803449511,-500.0,0.00040273,2]
[354900588,1740803449522,-500.0,0.00040273,2]
[354900589,1740803449531,-500.0,0.00040273,2]
[354900590,1740803449541,-500.0,0.00040273,2]
[354900591,1740803449551,-500.0,0.00040273,2]
[354900592,1740803449561,-2032.81,0.00040273,2]
[354900593,1740803449571,-500.0,0.00040273,2]
[354900594,1740803449581,-500.0,0.00040273,2]
[354900595,1740803449590,-500.0,0.00040273,2]
[354900596,1740803449602,-500.0,0.00040273,2]
[354900597,1740803449613,-500.0,0.00040273,2]
[354900598,1740803449623,-500.0,0.00040273,2]
[354900599,1740803449632,-919.37,0.00040273,2]
[354900600,1740803449642,-500.0,0.00040273,2]
[354900601,1740803449653,-500.0,0.00040273,2]
[354900602,1740803449662,-500.0,0.00040273,2]
[354900603,1740803449671,-500.0,0.00040273,2]
[354900604,1740803449681,-500.0,0.00040273,2]
[354900605,1740803449690,-510.78311647,0.00040273,2]
[354900606,1740803449699,-500.0,0.00040273,2]
[354900607,1740803449709,-719.72,0.00040273,2]
[354900608,1740803449719,-500.0,0.00040273,2]
[354900609,1740803449729,-500.0,0.00040273,2]
[354900610,1740803449739,-500.0,0.00040273,2]
[354900611,1740803449748,-500.0,0.00040273,2]
[354900612,1740803449759,-1007.3,0.00040273,2]
[354900613,1740803449768,-500.0,0.00040273,2]
[354900614,1740803449777,-500.0,0.00040273,2]
[354900615,1740803449787,-500.0,0.00040273,2]
[354900616,1740803449797,-500.0,0.00040273,2]
[354900617,1740803449807,-503.37120963,0.00040273,2]
[354900618,1740803449816,-500.0,0.00040273,2]
[354900619,1740803449826,-500.0,0.00040273,2]
[354900620,1740803449836,-500.0,0.00040273,2]
[354900621,1740803449846,-727.63,0.00040273,2]
[354900622,1740803449856,-804.31,0.00040273,2]
[354900623,1740803449866,-500.0,0.00040273,2]
[354900624,1740803449878,-500.0,0.00040273,2]
[354900625,1740803449887,-500.0,0.00040273,2]
[354900626,1740803449897,-501.58502566,0.00040273,2]
[354900627,1740803449906,-505.40143779,0.00040273,2]
[354900628,1740803449916,-500.0,0.00040273,2]
[354900629,1740803449925,-500.0,0.00040273,2]
[354900630,1740803449935,-787.09,0.00040273,2]
[354900631,1740803449944,-500.0,0.00040273,2]
[354900632,1740803449954,-1454.97,0.00040273,2]
[354900633,1740803449964,-3506.83,0.00040273,2]
[354900634,1740803449974,-510.26266062,0.00040273,2]
[354900635,1740803449985,-501.68550757,0.00040273,2]
[354900636,1740803449995,-2172.42,0.00040273,2]
[354900637,1740803450004,-500.0,0.00040273,2]
[354900638,1740803450014,-500.0,0.00040273,2]
[354900639,1740803450024,-609.77,0.00040273,2]
[354900640,1740803450035,-500.0,0.00040273,2]
[354900641,1740803450044,-500.0,0.00040273,2]
[354900642,1740803450054,-511.54275996,0.00040273,2]
[354900643,1740803450064,-500.0,0.00040273,2]
[354900644,1740803450073,-522.21,0.00040273,2]
[354900645,1740803450083,-500.0,0.00040273,2]
[354900646,1740803450092,-500.0,0.00040273,2]
[354900647,1740803450102,-500.0,0.00040273,2]
[354900648,1740803450112,-502.19218738,0.00040273,2]
[354900649,1740803450121,-816.9,0.00040273,2]
[354900650,1740803450132,-500.0,0.00040273,2]
[354900651,1740803450141,-500.0,0.00040273,2]
[354900652,1740803450151,-500.0,0.00040273,2]
[354900653,1740803450161,-552.87,0.00040273,2]
[354900654,1740803450170,-1508.91,0.00040273,2]
[354900655,1740803450180,-500.0,0.00040273,2]
[354900656,1740803450189,-525.37108251,0.00040273,2]
[354900657,1740803450199,-500.0,0.00040273,2]
[354900658,1740803450208,-500.0,0.00040273,2]
[354900659,1740803450218,-500.0,0.00040273,2]
[354900660,1740803450228,-500.0,0.00040273,2]
[354900661,1740803450237,-500.0,0.00040273,2]
[354900662,1740803450246,-500.0,0.00040273,2]
[354900663,1740803450256,-500.0,0.00040273,2]
[354900664,1740803450265,-472.71977151,0.00040273,2]
[354900665,1740803450275,-502.51459829,0.00040273,2]
[354900666,1740803450284,-500.0,0.00040273,2]
[354900667,1740803450293,-500.0,0.00040273,2]
[354900668,1740803450303,-500.0,0.00040273,2]
[354900669,1740803450314,-1506.29,0.00040273,2]
[354900670,1740803450324,-579.37,0.00040273,2]
[354900671,1740803450333,-500.0,0.00040273,2]
[354900672,1740803450344,-413.93583879,0.00040273,2]
[354900673,1740803450354,-500.0,0.00040273,2]
[354900674,1740803450364,-500.0,0.00040273,2]
[354900675,1740803450375,-500.0,0.00040273,2]
[354900676,1740803450385,-502.85480777,0.00040273,2]
[354900677,1740803450396,-503.4512173,0.00040273,2]
[354900678,1740803450406,-1874.73,0.00040273,2]
[354900679,1740803450415,-500.0,0.00040273,2]
[354900680,1740803450424,-151.0,0.00040273,14]
[354900681,1740803450434,-500.0,0.00040273,2]
[354900682,1740803450443,-500.0,0.00040273,2]
[354900683,1740803450453,-500.0,0.00040273,2]
[354900684,1740803450590,-151.0,0.00040273,14]
[354900685,1740803450601,-151.0,0.00040273,14]
[354900686,1740803450611,-153.636533,0.00040273,14]
[354900687,1740803450622,-500.0,0.00040273,2]
[354900688,1740803450634,-2251.134009,0.00040273,14]
[354900689,1740803450644,-153.636533,0.00040273,14]
[354900690,1740803450654,-500.0,0.00040273,2]
[354900691,1740803450664,-157.91491,0.00040273,14]
[354900692,1740803450673,-2251.134009,0.00040273,14]
[354900693,1740803450683,-152.273123,0.00040273,14]
[354900694,1740803450692,-500.0,0.00040273,2]
[354900695,1740803450701,-500.0,0.00040273,2]
[354900696,1740803450711,-513.75,0.00040273,2]
[354900697,1740803450720,-151.0,0.00040273,14]
[354900698,1740803450730,-456.11946,0.00040273,14]
[354900699,1740803450739,-456.11946,0.00040273,14]
[354900700,1740803450748,-500.0,0.00040273,2]
[354900701,1740803450758,-812.665492,0.00040273,14]
[354900702,1740803450768,-878.759832,0.00040273,14]
[354900703,1740803450777,-878.759832,0.00040273,14]
[354900704,1740803450787,-823.07,0.00040273,2]
[354900705,1740803450796,-360.470834,0.00040273,14]
[354900706,1740803450805,-360.470834,0.00040273,14]
[354900707,1740803450815,-2500.008198,0.00040273,14]
[354900708,1740803450825,-2500.008198,0.00040273,14]
[354900709,1740803450834,-2500.008198,0.00040273,14]
[354900710,1740803450844,-2500.008198,0.00040273,14]
[354900711,1740803450853,-158.079616,0.00040273,14]
[354900712,1740803450863,-151.0,0.00040273,14]
[354900713,1740803450873,-151.0,0.00040273,14]
[354900714,1740803450882,-174.723508,0.00040273,14]
[354900715,1740803450892,-174.723508,0.00040273,14]
[354900716,1740803450901,-174.723508,0.00040273,14]
[354900717,1740803450911,-174.723508,0.00040273,14]
[354900718,1740803450920,-722.851103,0.00040273,14]
[354900719,1740803450930,-722.851103,0.00040273,14]
[354900720,1740803450940,-722.851103,0.00040273,14]
[354900721,1740803450950,-722.851103,0.00040273,14]